bitfinex-derivatives/quotes_ETHF0:USTF0_20250503
["timestamp","ask_amount","ask_price","bid_price","bid_amount"]
[1746234017753,3.63426,1840.0,1839.9,1.6727]
[1746234019070,3.63426,1840.0,1839.9,2.75922]
[1746234019263,3.63426,1840.0,1839.9,1.6727]
[1746234021556,1.08646,1840.0,1839.9,2.75922]
[1746234025353,2.80763,1840.1,1840.0,1.08646]
[1746234025558,1.0864,1840.1,1840.0,4.36876]
[1746234025966,5.35378,1840.2,1840.1,1.0864]
[1746234026167,5.35378,1840.2,1840.1,2.7367]
[1746234027467,1.08625,1840.4,1840.3,1.08623]
[1746234027964,1.08625,1840.4,1840.3,1.92833]
[1746234028166,1.08625,1840.4,1840.3,5.64633]
[1746234028360,1.08625,1840.4,1840.3,7.32663]
[1746234029268,10.80509745,1840.5,1840.4,1.08623]
[1746234029459,10.80509745,1840.5,1840.4,2.76653]
[1746234030163,10.80509745,1840.5,1840.4,1.6803]
[1746234030370,1.08623,1840.4,1840.3,1.92833]
[1746234030565,2.78173,1840.4,1840.3,1.92833]
[1746234031769,2.78173,1840.4,1840.3,3.58713]
[1746234032369,2.78173,1840.4,1840.3,7.30513]
[1746234033365,2.78173,1840.4,1840.3,3.58713]
[1746234039172,2.78173,1840.4,1840.3,7.30513]
[1746234039374,2.78814205,1840.4,1840.3,7.30513]
[1746234040172,2.78814205,1840.4,1840.3,3.58713]
[1746234042673,2.78814205,1840.4,1840.3,1.08623]
[1746234048374,2.78814205,1840.4,1840.3,2.70683]
[1746234050962,0.00641205,1840.4,1840.3,2.70683]
[1746234051169,0.00641205,1840.4,1840.3,8.08903]
[1746234051478,1.09264205,1840.4,1840.3,7.25313]
[1746234051776,2.70874205,1840.4,1840.3,7.25313]
[1746234051967,2.70874205,1840.4,1840.3,4.80423]
[1746234052169,2.70874205,1840.4,1840.3,1.08623]
[1746234053374,2.70874205,1840.4,1840.3,2.72323]
[1746234054774,1.09264205,1840.4,1840.3,2.72323]
[1746234054962,1.09264205,1840.4,1840.3,3.55003]
[1746234055675,0.00641205,1840.4,1840.3,3.55003]
[1746234055974,0.00641205,1840.4,1840.3,4.41643]
[1746234056180,0.00641205,1840.4,1840.3,8.13443]
[1746234058273,1.09264205,1840.4,1840.3,4.41643]
[1746234059176,1.09264205,1840.4,1840.3,8.13443]
[1746234060671,0.00641205,1840.4,1840.3,8.13443]
[1746234065079,4.8316,1840.7,1840.6,1.08611]
[1746234065375,1.6238,1840.7,1840.6,1.08611]
[1746234065570,1.6238,1840.7,1840.6,3.59611]
[1746234066674,1.7155,1840.8,1840.7,1.08605]
[1746234066875,0.8605,1840.8,1840.7,2.79405]
[1746234067179,4.29376,1840.9,1840.8,1.08599]
[1746234067377,5.15426,1840.9,1840.8,2.79399]
[1746234068074,4.0683,1840.9,1840.8,2.79399]
[1746234068278,13.17177745,1841.0,1840.9,1.08593]
[1746234068279,8.01727745,1841.0,1840.9,1.08593]
[1746234068477,7.19177745,1841.0,1840.9,2.80623]
[1746234068674,7.19177745,1841.1,1841.0,1.08587]
[1746234068876,7.19177745,1841.1,1841.0,2.80617]
[1746234070369,8.92137745,1841.1,1841.0,2.80617]
[1746234072279,10.00718745,1841.1,1841.0,2.80617]
[1746234072978,2.81541,1841.1,1841.0,2.80617]
[1746234073479,2.81541,1841.1,1841.0,1.08587]
[1746234078185,1.7296,1841.1,1841.0,1.08587]
[1746234078483,2.81541,1841.1,1841.0,1.08587]
[1746234080186,2.81541,1841.1,1841.0,4.80387]
[1746234081185,2.81541,1841.1,1841.0,1.08587]
[1746234086187,2.81541,1841.1,1840.9,2.4946]
[1746234086493,3.62457,1841.0,1840.9,2.72303]
[1746234086791,1.08593,1840.9,1840.8,10.20974]
[1746234087087,3.65943,1840.9,1840.8,10.20974]
[1746234089087,3.65943,1840.9,1840.8,11.82584]
[1746234090295,1.91972,1841.0,1840.9,1.08593]
[1746234090590,1.91972,1841.0,1840.9,2.70203]
[1746234091590,2.73206,1841.1,1841.0,1.08587]
[1746234091790,3.58976,1841.1,1841.0,2.70197]
[1746234092088,0.8577,1841.1,1841.0,2.70197]
[1746234092293,1.94351,1841.1,1841.0,3.50137]
[1746234093096,0.8577,1841.1,1841.0,3.50137]
[1746234093582,1.94351,1841.1,1841.0,1.08587]
[1746234093990,0.8577,1841.1,1841.0,2.79057]
[1746234094293,3.59711,1841.2,1841.1,1.08581]
[1746234094491,4.42151,1841.2,1841.1,2.79051]
[1746234095697,0.8244,1841.2,1841.1,2.79051]
[1746234095995,0.8244,1841.2,1841.1,3.58191]
[1746234096496,1.91015,1841.2,1841.1,3.58191]
[1746234096696,0.8244,1841.2,1841.1,3.58191]
[1746234097996,1.91015,1841.2,1841.1,3.58191]
[1746234098194,3.56035,1841.2,1841.1,3.58191]
[1746234101701,1.91015,1841.2,1841.1,3.58191]
[1746234103002,3.65845,1841.2,1841.1,3.58191]
[1746234105003,3.65845,1841.2,1841.1,2.79051]
[1746234106394,3.65845,1841.2,1841.1,1.08581]
[1746234111308,3.65845,1841.2,1841.1,2.82821]
[1746234116407,10.85022745,1841.2,1841.1,2.82821]
[1746234117703,2.71454,1841.1,1840.8,9.1238]
[1746234117909,2.71489,1840.9,1840.4,19.9644531]
[1746234118102,1.08611,1840.6,1840.5,8.29522829]
[1746234118309,1.08611,1840.6,1840.5,10.03942829]
[1746234119703,1.08611,1840.6,1840.5,10.89332829]
[1746234121011,1.08611,1840.6,1840.5,3.68423]
[1746234122411,1.08611,1840.6,1840.5,2.5981]
[1746234122708,2.83221,1840.6,1840.5,2.5981]
[1746234124005,1.08617,1840.5,1840.4,9.1238]
[1746234124208,4.44247,1840.5,1840.4,9.1238]
[1746234124703,4.44247,1840.5,1840.4,10.7381]
[1746234125608,4.44247,1840.5,1840.4,11.82433]
[1746234126408,4.44247,1840.5,1840.4,8.61653]
[1746234130313,4.44247,1840.5,1840.4,7.5303]
[1746234132913,1.08629,1840.3,1840.2,4.0568]
[1746234133105,1.08634,1840.2,1840.1,1.6103]
[1746234133301,1.0864,1840.1,1840.0,5.916]
[1746234133609,1.08646,1840.0,1839.9,3.53442]
[1746234133814,1.08646,1840.0,1839.9,1.6103]
[1746234134007,2.73166,1840.0,1839.9,2.69682]
[1746234134517,2.73166,1840.0,1839.9,1.6103]
[1746234134705,1.08658,1839.8,1839.7,13.12509829]
[1746234135114,8.24058,1839.8,1839.7,13.12509829]
[1746234135414,13.24058,1839.8,1839.7,7.20909829]
[1746234136820,8.24058,1839.8,1839.7,7.20909829]
[1746234137315,4.52258,1839.8,1839.7,7.20909829]
[1746234137516,9.52258,1839.8,1839.7,7.20909829]
[1746234137917,4.52258,1839.8,1839.7,7.20909829]
[1746234138109,4.52258,1839.8,1839.5,16.09680413]
[1746234138110,1.0867,1839.6,1839.5,1.6426]
[1746234138910,1.08688,1839.3,1839.2,3.2078]
[1746234139519,4.39138,1839.3,1839.2,3.2078]
[1746234139919,1.08699,1839.1,1839.0,3.2078]
[1746234140218,1.08699,1839.1,1839.0,4.29485]
[1746234140517,1.08699,1839.1,1839.0,4.9153]
[1746234141718,0.8261,1839.3,1839.1,1.08696]
[1746234141917,1.0869,1839.3,1839.2,1.08693]
[1746234142113,4.52385,1839.4,1839.1,2.4274]
[1746234142416,4.52385,1839.4,1839.2,2.72559]
[1746234142615,4.52385,1839.4,1839.3,2.72558]
[1746234144421,4.52385,1839.4,1839.3,1.6387]
[1746234145326,5.38915,1839.4,1839.3,1.6387]
[1746234146625,6.18065,1839.4,1839.3,1.6387]
[1746234149315,1.08693,1839.2,1839.1,3.9965]
[1746234150017,6.08693,1839.2,1839.1,3.9965]
[1746234150218,1.08705,1839.0,1838.9,7.00311]
[1746234150424,5.39854,1839.1,1839.0,2.76694]
[1746234150619,5.39854,1839.1,1839.0,1.6799]
[1746234150828,7.13934,1839.1,1839.0,1.6799]
[1746234151626,7.13934,1839.1,1839.0,2.76695]
[1746234153425,7.13934,1839.1,1839.0,1.6799]
[1746234153628,6.0523,1839.1,1838.8,1.08712]
[1746234153829,1.08716,1838.9,1838.8,1.6115]
[1746234154220,2.76806,1838.9,1838.8,1.6115]
[1746234155822,2.76806,1838.9,1838.8,2.69867]
[1746234156027,1.08716,1838.9,1838.8,2.69867]
[1746234156721,1.08716,1838.9,1838.8,1.6115]
[1746234157124,1.08717,1838.8,1838.7,3.2078]
[1746234157429,5.33117,1838.8,1838.7,4.29503]
[1746234157730,5.33117,1838.8,1838.7,5.91753]
[1746234161431,3.438,1838.8,1838.7,5.91753]
[1746234161732,1.08705,1839.0,1838.9,1.08711]
[1746234161930,1.08705,1839.0,1838.9,4.29491]
[1746234162129,1.08705,1839.0,1838.9,6.82971]
[1746234165327,77.07004,1839.1,1839.0,1.08705]
[1746234165523,77.07004,1839.1,1839.0,2.72955]
[1746234166028,77.06999,1839.1,1839.0,2.72955]
[1746234171937,77.06999,1839.1,1839.0,1.6425]
[1746234172137,1.08705,1839.0,1838.9,1.08706]
[1746234172337,3.57575,1839.0,1838.9,1.08706]
[1746234172537,3.57575,1839.0,1838.9,2.79016]
[1746234179039,5.20634,1839.0,1838.7,10.21099]
[1746234179238,5.20634,1839.0,1838.7,11.90159]
[1746234179239,1.08717,1838.8,1838.7,11.90159]
[1746234180850,2.81367,1838.8,1838.7,11.90159]
[1746234181045,2.81367,1838.8,1838.7,9.1238]
[1746234181239,2.81367,1838.8,1838.5,4.29511]
[1746234181240,1.08729,1838.6,1838.5,4.29511]
[1746234181539,1.08729,1838.6,1838.5,4.8638]
[1746234181947,2.81379,1838.6,1838.5,4.8638]
[1746234182245,2.81379,1838.6,1838.5,3.2078]
[1746234182946,2.81379,1838.6,1838.5,4.29515]
[1746234183147,2.81379,1838.6,1838.5,5.95115]
[1746234183951,1.08729,1838.6,1838.5,5.95115]
[1746234184141,1.92218,1838.7,1838.6,1.08729]
[1746234184439,1.92218,1838.7,1838.6,2.68539]
[1746234185049,6.21081,1838.8,1838.7,1.08723]
[1746234185241,4.9316,1838.9,1838.8,1.08717]
[1746234185437,4.29491,1838.9,1838.8,1.08717]
[1746234185642,4.52505,1839.0,1838.9,1.08711]
[1746234185941,11.71682745,1839.0,1838.9,2.68521]
[1746234186749,1.08717,1838.8,1838.7,1.08718]
[1746234187046,1.08717,1838.8,1838.7,2.75218]
[1746234187653,1.87887,1838.8,1838.7,2.75218]
[1746234188147,74.42387,1838.8,1838.7,2.75218]
[1746234190443,1.08723,1838.7,1838.6,1.89524]
[1746234190643,3.58403,1838.7,1838.6,1.89524]
[1746234190844,3.58403,1838.7,1838.6,3.50224]
[1746234191454,1.94103,1838.7,1838.6,3.50224]
[1746234191645,74.42391,1838.8,1838.7,1.08723]
[1746234191846,74.42391,1838.8,1838.7,2.69423]
[1746234192745,76.16751,1838.8,1838.7,2.69423]
[1746234193253,1.08729,1838.6,1838.5,4.2951]
[1746234194556,1.08729,1838.6,1838.5,6.0449]
[1746234196449,1.08729,1838.6,1838.5,2.8371]
[1746234201857,1.08741,1838.5,1838.4,1.08737]
[1746234202059,1.89871,1838.5,1838.4,2.72937]
[1746234207564,3.49031,1838.5,1838.4,2.72937]
[1746234210565,1.89871,1838.5,1838.4,2.72937]
[1746234213973,1.08741,1838.5,1838.4,2.72937]
[1746234214160,1.08741,1838.5,1838.4,3.59757]
[1746234215873,72.545,1838.6,1838.5,1.08735]
[1746234216072,72.545,1838.6,1838.5,9.67795]
[1746234219178,1.08723,1838.7,1838.6,1.08729]
[1746234219378,1.08723,1838.7,1838.6,3.69969]
[1746234221065,2.81222,1838.8,1838.7,1.08723]
[1746234221271,2.81222,1838.8,1838.7,2.78353]
[1746234223885,2.81222,1838.8,1838.7,1.6963]
[1746234224181,2.81222,1838.8,1838.7,1.08723]
[1746234225784,1.08729,1838.7,1838.6,1.08725]
[1746234225987,2.75109,1838.7,1838.6,1.08725]
[1746234228191,2.75109,1838.7,1838.6,2.72885]
[1746234231987,1.08729,1838.7,1838.6,2.72885]
[1746234232384,5.42038302,1838.9,1838.8,1.08717]
[1746234232590,5.42038302,1838.9,1838.8,4.29497]
[1746234232987,6.50749302,1838.9,1838.8,6.03727]
[1746234233188,7.36409302,1838.9,1838.8,6.03727]
[1746234233487,9.04169302,1838.9,1838.8,6.03727]
[1746234233680,7.95458302,1838.9,1838.8,6.03727]
[1746234235796,6.27698302,1838.9,1838.8,6.03727]
[1746234235996,0.8566,1838.9,1838.8,6.03727]
[1746234236694,1.08698,1839.2,1838.9,2.71779]
[1746234236994,0.81,1839.2,1839.1,1.08699]
[1746234237298,8.98528302,1839.3,1839.2,1.08693]
[1746234237889,8.98528302,1839.3,1839.2,2.79353]
[1746234240387,8.98528302,1839.3,1839.2,1.08693]
[1746234240592,3.5649,1839.3,1839.2,1.08693]
[1746234241493,1.08699,1839.1,1838.9,7.00308]
[1746234241691,2.77055,1839.0,1838.9,7.00308]
[1746234241897,2.77055,1839.0,1838.9,8.68688]
[1746234243596,1.08703,1839.1,1839.0,1.08705]
[1746234243795,4.49983,1839.3,1839.2,1.08689]
[1746234244300,2.82573,1839.3,1839.2,1.08689]
[1746234244502,2.82573,1839.3,1839.2,2.77069]
[1746234246095,1.08693,1839.2,1839.1,4.29475]
[1746234246292,2.72673,1839.2,1839.1,1.08695]
[1746234246492,1.08699,1839.1,1839.0,1.08701]
[1746234246692,1.08699,1839.1,1838.9,9.1238]
[1746234246693,1.08705,1839.0,1838.9,10.21085]
[1746234246899,2.67035,1839.0,1838.9,10.21085]
[1746234247200,2.67035,1839.0,1838.9,4.29485]
[1746234248505,1.08711,1838.9,1838.8,2.80001]
[1746234248700,1.08717,1838.8,1838.7,1.08718]
[1746234248901,1.08723,1838.7,1838.6,7.00324]
[1746234249101,4.43223,1838.7,1838.6,7.00329]
[1746234249997,4.43223,1838.7,1838.6,8.67689]
[1746234251411,4.43223,1838.7,1838.6,5.916]
[1746234251602,1.08729,1838.6,1838.5,1.96201]
[1746234251799,2.73339,1838.6,1838.5,1.96201]
[1746234252001,2.73339,1838.6,1838.5,3.54991]
[1746234259113,2.73339,1838.6,1838.5,1.5879]
[1746234259316,1.08735,1838.5,1838.4,1.08736]
[1746234259513,2.67925,1838.5,1838.4,1.08736]
[1746234259716,2.67925,1838.5,1838.4,2.75396]
[1746234260719,1.08735,1838.5,1838.4,2.75396]
[1746234261113,1.08733,1838.6,1838.5,1.08729]
[1746234261316,1.08733,1838.6,1838.5,5.96019]
[1746234261516,2.72807,1838.7,1838.6,1.08729]
[1746234261716,1.93587,1838.7,1838.6,3.62249]
[1746234262220,1.08715,1838.9,1838.8,1.08717]
[1746234262716,1.08715,1838.9,1838.8,2.75227]
[1746234263621,9.94548302,1839.0,1838.9,1.08711]
[1746234263806,11.62798302,1839.0,1838.9,2.66821]
[1746234264321,9.94548302,1839.0,1838.9,2.66821]
[1746234264818,9.94548302,1839.0,1838.9,3.51881]
[1746234265622,4.5251,1839.0,1838.9,3.51881]
[1746234266817,6.228,1839.0,1838.9,3.51881]
[1746234272727,1.08711,1838.9,1838.8,1.08713]
[1746234272926,1.08723,1838.7,1838.6,2.72485]
[1746234273614,2.69833,1838.7,1838.6,2.72485]
[1746234273819,1.08729,1838.6,1838.5,1.0873]
[1746234274025,2.69839,1838.6,1838.5,1.0873]
[1746234274222,2.69839,1838.6,1838.5,2.7249]
[1746234277023,2.69839,1838.6,1838.5,5.9327]
[1746234282330,2.69839,1838.6,1838.5,2.7249]
[1746234282531,2.69839,1838.6,1838.5,5.9327]
[1746234285732,1.6111,1838.6,1838.5,5.9327]
[1746234285933,2.69839,1838.6,1838.5,5.9327]
[1746234287434,1.6111,1838.6,1838.5,5.9327]
[1746234287934,1.08728,1838.7,1838.6,1.08729]
[1746234288233,1.08728,1838.7,1838.6,2.73889]
[1746234288437,1.08728,1838.7,1838.6,3.59729]
[1746234289338,1.08728,1838.7,1838.6,2.73889]
[1746234291230,2.70788,1838.7,1838.6,2.73889]
[1746234294333,1.08729,1838.6,1838.5,4.2951]
[1746234294534,2.68509,1838.6,1838.5,5.9355]
[1746234296241,75.23009,1838.6,1838.5,5.9355]
[1746234297241,1.08741,1838.5,1838.4,1.08737]
[1746234297428,1.90831,1838.5,1838.4,2.70687]
[1746234298237,3.54381,1838.5,1838.4,2.70687]
[1746234300438,72.545,1838.6,1838.5,1.08735]
[1746234300628,72.545,1838.6,1838.5,3.53155]
[1746234301141,72.545,1838.6,1838.5,7.24955]
[1746234301346,73.63229,1838.6,1838.5,6.39965]
[1746234301534,75.26019,1838.6,1838.5,6.39965]
[1746234302229,75.26019,1838.6,1838.5,2.68165]
[1746234302440,72.545,1838.6,1838.5,2.68165]
[1746234303234,72.545,1838.6,1838.5,6.39965]
[1746234303435,72.545,1838.6,1838.5,9.60745]
[1746234304738,59.98541205,1838.6,1838.5,14.60745]
[1746234305039,59.98541205,1838.6,1838.5,9.60745]
[1746234305243,59.98541205,1838.6,1838.5,6.39965]
[1746234305442,59.98541205,1838.6,1838.5,9.60745]
[1746234307944,61.07270205,1838.6,1838.5,9.60745]
[1746234311549,61.94360205,1838.6,1838.5,9.60745]
[1746234311744,61.94360205,1838.6,1838.5,8.5201]
[1746234311939,61.94360205,1838.6,1838.5,9.60745]
[1746234312352,59.98541205,1838.6,1838.5,9.60745]
[1746234312647,61.07270205,1838.6,1838.5,9.60745]
[1746234314249,61.07270205,1838.6,1838.5,2.68165]
[1746234316252,59.98541205,1838.6,1838.5,2.68165]
[1746234317042,59.98541205,1838.6,1838.5,6.39965]
[1746234317246,61.07270205,1838.6,1838.5,6.39965]
[1746234318750,62.77800205,1838.6,1838.5,6.39965]
[1746234318950,62.77800205,1838.6,1838.5,5.3123]
[1746234319151,1.08741,1838.5,1838.3,9.9714]
[1746234319356,1.96251,1838.4,1838.3,12.77317]
[1746234320060,1.96251,1838.4,1838.3,19.98226829]
[1746234320259,1.96251,1838.4,1838.3,23.70026829]
[1746234322853,2.82401,1838.4,1838.3,23.70026829]
[1746234323158,2.82401,1838.4,1838.3,19.98226829]
[1746234323650,2.82401,1838.4,1838.3,12.77317]
[1746234327359,2.82401,1838.4,1838.3,11.6857]
[1746234328060,2.82401,1838.4,1838.3,15.4037]
[1746234328258,4.44031,1838.4,1838.3,15.4037]
[1746234328854,4.44031,1838.4,1838.3,16.49117]
[1746234330259,4.44031,1838.4,1838.3,12.77317]
[1746234330464,4.44031,1838.4,1838.3,11.92557]
[1746234338171,4.44031,1838.4,1838.3,6.00957]
[1746234342371,64.42572205,1838.4,1838.3,6.00957]
[1746234344170,64.42572205,1838.4,1838.3,9.72757]
[1746234345071,64.42572205,1838.4,1838.3,6.00957]
[1746234346571,64.42076101,1838.4,1838.3,6.00957]
[1746234353574,62.80446101,1838.4,1838.3,6.00957]
[1746234354175,62.80446101,1838.4,1838.3,9.72757]
[1746234356177,62.80446101,1838.4,1838.3,6.00957]
[1746234357275,64.42786101,1838.4,1838.3,6.00957]
[1746234359775,59.98541205,1838.4,1838.3,6.00957]
[1746234359981,59.98541205,1838.4,1838.3,6.80667]
[1746234360173,59.98541205,1838.4,1838.3,10.52467]
[1746234361589,59.98541205,1838.4,1838.3,16.44067]
[1746234362892,59.98541205,1838.4,1838.3,19.87967]
[1746234363094,59.98541205,1838.4,1838.3,24.87967]
[1746234364292,59.98541205,1838.4,1838.3,44.69496848]
[1746234369791,59.98541205,1838.4,1838.3,39.69496848]
[1746234371396,59.98541205,1838.4,1838.3,36.11611693]
[1746234372293,59.98541205,1838.4,1838.3,35.31901693]
[1746234372587,61.07282205,1838.4,1838.3,29.07824693]
[1746234372781,62.74122205,1838.4,1838.3,30.16571693]
[1746234373092,62.74122205,1838.4,1838.3,26.44771693]
[1746234373294,62.74122205,1838.4,1838.3,20.53171693]
[1746234375594,62.74122205,1838.4,1838.3,4.29527]
[1746234382294,63.55742205,1838.4,1838.3,4.29527]
[1746234385001,63.55742205,1838.4,1838.3,3.2078]
[1746234385305,1.08747,1838.3,1838.2,1.08748]
[1746234385602,2.83587,1838.3,1838.2,1.08748]
[1746234388207,2.83587,1838.3,1838.2,4.80548]
[1746234388800,1.7484,1838.3,1838.2,4.80548]
[1746234389001,2.83587,1838.3,1838.2,4.80548]
[1746234390107,1.7484,1838.3,1838.2,4.80548]
[1746234390310,2.83587,1838.3,1838.2,4.80548]
[1746234391107,2.83587,1838.3,1838.2,1.08748]
[1746234393013,1.7484,1838.3,1838.2,1.08748]
[1746234393506,1.7484,1838.3,1838.2,2.70068]
[1746234395811,60.80161205,1838.4,1838.3,1.08747]
[1746234396005,60.80161205,1838.4,1838.3,2.72217]
[1746234396204,60.80161205,1838.4,1838.3,6.44017]
[1746234401323,60.80161205,1838.4,1838.3,9.64797]
[1746234402721,62.53591205,1838.4,1838.3,9.64797]
[1746234404524,2.5505,1838.4,1838.3,9.64797]
[1746234405223,2.5505,1838.4,1838.3,5.92997]
[1746234405625,2.5505,1838.4,1838.3,2.72217]
[1746234405824,2.5505,1838.4,1838.3,5.92997]
[1746234407929,0.8162,1838.4,1838.3,5.92997]
[1746234408126,0.8162,1838.4,1838.3,9.64797]
[1746234409643,0.837,1838.5,1838.4,1.08741]
[1746234409826,1.92435,1838.5,1838.4,1.08741]
[1746234410026,6.92435,1838.5,1838.4,1.08741]
[1746234410426,1.92435,1838.5,1838.4,1.08741]
[1746234411125,2.71385,1838.5,1838.4,1.08741]
[1746234421028,1.6265,1838.5,1838.4,2.77381]
[1746234421233,2.71385,1838.5,1838.4,2.77381]
[1746234421435,2.71385,1838.5,1838.4,1.08741]
[1746234422134,2.71385,1838.5,1838.4,2.75531]
[1746234423633,2.71385,1838.5,1838.4,1.08741]
[1746234424432,1.08741,1838.4,1838.3,4.29523]
[1746234426543,1.08741,1838.4,1838.3,3.2078]
[1746234426741,1.08753,1838.3,1838.2,1.08751]
[1746234426941,1.91713,1838.3,1838.2,1.08751]
[1746234427443,3.56523,1838.3,1838.2,1.08751]
[1746234431342,1.08753,1838.2,1838.1,2.82223]
[1746234431532,3.53743,1838.2,1838.1,2.82223]
[1746234436649,3.53743,1838.2,1838.1,1.7347]
[1746234437354,3.53743,1838.2,1838.1,2.82229]
[1746234440752,3.53743,1838.2,1838.1,1.7347]
[1746234442355,13.37653,1838.2,1837.9,0.8682]
[1746234442651,1.0877,1837.9,1837.8,4.8793]
[1746234443253,4.8057,1837.9,1837.8,4.8793]
[1746234443550,6.5121,1837.9,1837.8,4.8793]
[1746234443954,6.5121,1837.9,1837.8,3.2078]
[1746234444254,2.7941,1837.9,1837.8,3.2078]
[1746234444557,4.4754,1837.9,1837.8,3.2078]
[1746234445353,4.4754,1837.9,1837.8,4.8355]
[1746234447960,1.08782,1837.7,1837.6,3.61537]
[1746234460060,1.92542,1837.7,1837.6,3.61537]
[1746234464969,3.59442,1837.7,1837.6,3.61537]
[1746234465172,1.08782,1837.7,1837.6,3.61537]
[1746234465469,1.08782,1837.7,1837.6,4.40957]
[1746234465770,61.07323205,1837.7,1837.6,4.40957]
[1746234466557,59.98541205,1837.7,1837.6,4.40957]
[1746234468373,61.07323205,1837.7,1837.6,4.40957]
[1746234471269,61.89323205,1837.7,1837.6,3.61537]
[1746234471769,63.49783205,1837.7,1837.6,3.61537]
[1746234479974,62.41001205,1837.7,1837.6,3.61537]
[1746234481472,59.98541205,1837.7,1837.6,3.61537]
[1746234481873,59.98541205,1837.7,1837.6,4.44987]
[1746234484876,59.98541205,1837.7,1837.6,9.44987]
[1746234487981,59.98541205,1837.7,1837.6,15.36587]
[1746234488480,59.98541205,1837.7,1837.6,18.80387]
[1746234491785,59.98541205,1837.7,1837.6,26.06567155]
[1746234492582,59.98541205,1837.7,1837.6,29.27347155]
[1746234492781,59.98541205,1837.7,1837.6,24.27347155]
[1746234494686,59.98541205,1837.7,1837.6,36.81875611]
[1746234495586,59.98541205,1837.7,1837.6,33.61095611]
[1746234495789,59.98541205,1837.7,1837.6,36.81875611]
[1746234496185,59.98541205,1837.7,1837.6,35.11335611]
[1746234497185,60.82841205,1837.7,1837.6,15.30627]
[1746234497384,59.98541205,1837.7,1837.6,15.30627]
[1746234499083,59.98541205,1837.7,1837.6,13.64967]
[1746234499288,59.98541205,1837.7,1837.6,10.44187]
[1746234499590,61.67861205,1837.7,1837.6,10.44187]
[1746234499789,61.67861205,1837.7,1837.6,4.52587]
[1746234499990,61.67861205,1837.7,1837.6,1.08787]
[1746234509108,62.76643205,1837.7,1837.6,1.08787]
[1746234510206,61.67861205,1837.7,1837.6,1.08787]
[1746234510910,62.76643205,1837.7,1837.6,1.08787]
[1746234511211,1.08788,1837.6,1837.5,4.29569]
[1746234511404,4.32828,1837.6,1837.5,4.29569]
[1746234512309,3.2404,1837.6,1837.5,4.29569]
[1746234513811,4.32828,1837.6,1837.5,4.29569]
[1746234515613,3.2404,1837.6,1837.5,4.29569]
[1746234516907,4.32828,1837.6,1837.5,4.29569]
[1746234529715,4.32828,1837.6,1837.5,5.94889]
[1746234535426,4.32828,1837.6,1837.5,4.29569]
[1746234537724,4.32828,1837.6,1837.5,5.96149]
[1746234541926,4.32828,1837.6,1837.5,2.75369]
[1746234542828,64.31369205,1837.6,1837.5,2.75369]
[1746234550330,64.31369205,1837.6,1837.4,1.08797]
[1746234550331,1.08794,1837.5,1837.4,1.08797]
[1746234550530,2.75224,1837.5,1837.4,1.08797]
[1746234551330,2.75224,1837.5,1837.4,2.81137]
[1746234554026,1.08794,1837.5,1837.4,2.81137]
[1746234556136,2.70024,1837.5,1837.4,2.81137]
[1746234558838,1.088,1837.4,1837.3,1.08802]
[1746234559038,3.683,1837.4,1837.3,1.08802]
[1746234559539,1.08806,1837.3,1837.2,6.71997]
[1746234559834,3.63396,1837.3,1837.2,6.71997]
[1746234561533,3.63396,1837.3,1837.2,3.51217]
[1746234561733,3.63396,1837.3,1837.2,6.71997]
[1746234563740,3.63396,1837.3,1837.2,3.51217]
[1746234564129,1.89806,1837.3,1837.2,3.51217]
[1746234572244,3.61476,1837.3,1837.2,3.51217]
[1746234573145,2.7203,1837.2,1836.8,7.2627174]
[1746234573345,1.0883,1836.9,1836.8,7.2627174]
[1746234573541,1.0883,1836.9,1836.8,8.9205174]
[1746234573743,4.5536,1836.9,1836.8,8.9205174]
[1746234574845,4.5536,1836.9,1836.8,7.2627174]
[1746234579648,1.08836,1836.8,1836.7,2.7069]
[1746234582447,5.39893,1836.9,1836.8,1.08836]
[1746234582651,5.39893,1836.9,1836.8,3.61316]
[1746234583241,5.39893,1836.9,1836.8,2.5248]
[1746234583446,6.98833,1836.9,1836.8,2.5248]
[1746234583852,6.98833,1836.9,1836.8,1.6536]
[1746234584153,6.98833,1836.9,1836.8,2.74196]
[1746234589559,6.98833,1836.9,1836.8,1.6536]
[1746234590055,1.08836,1836.8,1836.7,1.08837]
[1746234590258,3.53806,1836.8,1836.7,1.08837]
[1746234590556,1.08841,1836.7,1836.6,3.57102]
[1746234593159,1.08841,1836.7,1836.6,1.6114]
[1746234593360,1.08853,1836.6,1836.5,1.08848]
[1746234593659,1.08853,1836.6,1836.5,2.73238]
[1746234594556,1.08846,1836.7,1836.6,1.08847]
[1746234594756,1.08846,1836.7,1836.6,3.57397]
[1746234603661,3.2078,1837.0,1836.6,3.57397]
[1746234603869,5.31853,1837.1,1837.0,1.08824]
[1746234604271,1.08824,1837.0,1836.9,2.82755]
[1746234606867,2.74064,1837.0,1836.9,1.08825]
[1746234607169,1.0883,1836.9,1836.8,2.83991]
[1746234607368,2.7407,1836.9,1836.8,2.83991]
[1746234607570,3.5986,1836.9,1836.8,2.83991]
[1746234609975,3.5986,1836.9,1836.8,1.08831]
[1746234610276,1.08841,1836.8,1836.7,1.08836]
[1746234610463,3.50571,1836.8,1836.7,1.08836]
[1746234610770,6.94671,1836.8,1836.7,1.08836]
[1746234611467,6.94671,1836.8,1836.7,2.69176]
[1746234614466,4.52941,1836.8,1836.7,2.69176]
[1746234617371,7.02301,1836.8,1836.7,2.69176]
[1746234620282,67.00842205,1836.8,1836.7,2.69176]
[1746234622080,67.00842205,1836.8,1836.7,1.6034]
[1746234624075,67.00842205,1836.8,1836.7,2.69181]
[1746234625780,67.00842205,1836.8,1836.7,1.08841]